[Event "Titled Tuesday Blitz March 21 Late 2023"]
[White "Cella, Glaucio Dalla Cortt"]
[Black "Kalajzic, Ivan"]
[WhiteFideId "2119455"]
[BlackFideId "14506378"]
[WhiteElo "2011"]
[BlackElo "2203"]
[Result "1-0"]
[Round "07"]
[TimeControl "180+2"]
[Date "2023.03.21"]
[WhiteClock "0:02:10"]
[BlackClock "0:01:54"]

1. e4 {[%clk 0:03:00]}  Nc6 {[%clk 0:03:00]} 2. Nf3 {[%clk 0:03:01]}  d6 {[%clk 0:02:59]} 3. d4 {[%clk 0:03:01]}  Bg4 {[%clk 0:02:59]} 4. Bc4 {[%clk 0:02:57]}  Nf6 {[%clk 0:02:58]} 5. c3 {[%clk 0:02:55]}  e5 {[%clk 0:02:56]} 6. Qb3 {[%clk 0:02:55]}  Qd7 {[%clk 0:02:34]} 7. Bxf7+ {[%clk 0:02:48]}  Qxf7 {[%clk 0:02:32]} 8. Qxb7 {[%clk 0:02:49]}  Rb8 {[%clk 0:02:22]} 9. Qxc6+ {[%clk 0:02:46]}  Qd7 {[%clk 0:02:23]} 10. Qxd7+ {[%clk 0:02:39]}  Bxd7 {[%clk 0:02:13]} 11. dxe5 {[%clk 0:02:37]}  Nxe4 {[%clk 0:02:13]} 12. O-O {[%clk 0:02:34]}  Bg4 {[%clk 0:01:58]} 13. exd6 {[%clk 0:02:09]}  Bxd6 {[%clk 0:01:54]} 14. Re1 {[%clk 0:02:10]} 1-0


[Site "https://www.chess.com"]

[Event "Titled Tuesday Blitz March 21 Late 2023"]
[White "Hajiyev, Kanan"]
[Black "MunichMouse"]
[WhiteFideId "13404148"]
[WhiteElo "2103"]
[BlackElo "2313"]
[Result "1-0"]
[Round "07"]
[TimeControl "180+2"]
[Date "2023.03.21"]
[WhiteClock "0:00:14"]
[BlackClock "0:00:30"]

1. d4 {[%clk 0:02:42]}  Nf6 {[%clk 0:02:59]} 2. Nf3 {[%clk 0:02:43]}  g6 {[%clk 0:02:59]} 3. c4 {[%clk 0:02:44]}  Bg7 {[%clk 0:03:00]} 4. Nc3 {[%clk 0:02:45]}  d6 {[%clk 0:03:00]} 5. g3 {[%clk 0:02:45]}  O-O {[%clk 0:03:00]} 6. Bg2 {[%clk 0:02:46]}  Nbd7 {[%clk 0:03:01]} 7. O-O {[%clk 0:02:46]}  e5 {[%clk 0:03:01]} 8. e4 {[%clk 0:02:46]}  c6 {[%clk 0:03:01]} 9. b3 {[%clk 0:02:45]}  Re8 {[%clk 0:03:01]} 10. Bb2 {[%clk 0:02:45]}  Qc7 {[%clk 0:02:56]} 11. Qc2 {[%clk 0:02:44]}  Nf8 {[%clk 0:02:56]} 12. Rad1 {[%clk 0:02:43]}  Ne6 {[%clk 0:02:55]} 13. h3 {[%clk 0:02:37]}  exd4 {[%clk 0:02:38]} 14. Nxd4 {[%clk 0:02:25]}  Nxd4 {[%clk 0:02:34]} 15. Rxd4 {[%clk 0:02:26]}  Be6 {[%clk 0:02:34]} 16. Rfd1 {[%clk 0:02:25]}  Rad8 {[%clk 0:02:34]} 17. Qd2 {[%clk 0:02:25]}  Rd7 {[%clk 0:02:23]} 18. Rxd6 {[%clk 0:02:12]}  Red8 {[%clk 0:02:23]} 19. Rxd7 {[%clk 0:02:03]}  Rxd7 {[%clk 0:02:24]} 20. Qc2 {[%clk 0:01:59]}  Ne8 {[%clk 0:02:20]} 21. Rxd7 {[%clk 0:01:58]}  Qxd7 {[%clk 0:02:19]} 22. Kh2 {[%clk 0:01:53]}  Bd4 {[%clk 0:02:01]} 23. Nd1 {[%clk 0:01:19]}  Bxb2 {[%clk 0:01:58]} 24. Nxb2 {[%clk 0:01:20]}  Qd4 {[%clk 0:01:58]} 25. Nd1 {[%clk 0:01:03]}  Nc7 {[%clk 0:01:58]} 26. Ne3 {[%clk 0:00:52]}  Na6 {[%clk 0:01:26]} 27. Qd1 {[%clk 0:00:48]}  Qxd1 {[%clk 0:01:25]} 28. Nxd1 {[%clk 0:00:48]}  Nb4 {[%clk 0:01:26]} 29. Nc3 {[%clk 0:00:47]}  Kf8 {[%clk 0:01:25]} 30. Kg1 {[%clk 0:00:46]}  Ke7 {[%clk 0:01:25]} 31. Kf1 {[%clk 0:00:47]}  Kd6 {[%clk 0:01:25]} 32. Ke2 {[%clk 0:00:47]}  Kc5 {[%clk 0:01:26]} 33. Kd2 {[%clk 0:00:43]}  Kd4 {[%clk 0:01:20]} 34. a3 {[%clk 0:00:34]}  Na6 {[%clk 0:01:19]} 35. f4 {[%clk 0:00:28]}  f6 {[%clk 0:01:07]} 36. g4 {[%clk 0:00:24]}  Nb8 {[%clk 0:00:58]} 37. Bf1 {[%clk 0:00:22]}  Kc5 {[%clk 0:00:58]} 38. b4+ {[%clk 0:00:19]}  Kd4 {[%clk 0:00:40]} 39. c5 {[%clk 0:00:19]}  Bb3 {[%clk 0:00:32]} 40. Ne2+ {[%clk 0:00:17]}  Kxe4 {[%clk 0:00:30]} 41. Bg2# {[%clk 0:00:14]} 1-0


[Site "https://www.chess.com"]

[Event "Titled Tuesday Blitz March 21 Late 2023"]
[White "Donskov, Anatoly"]
[Black "sebastianmarinp"]
[WhiteFideId "24143413"]
[WhiteElo "2247"]
[BlackElo "2311"]
[Result "1-0"]
[Round "07"]
[TimeControl "180+2"]
[Date "2023.03.21"]
[WhiteClock "0:00:10"]
[BlackClock "0:00:02"]

1. e4 {[%clk 0:03:00]}  e5 {[%clk 0:02:59]} 2. Nf3 {[%clk 0:03:00]}  Nc6 {[%clk 0:02:59]} 3. Bb5 {[%clk 0:03:01]}  a6 {[%clk 0:02:59]} 4. Ba4 {[%clk 0:03:01]}  Nf6 {[%clk 0:03:00]} 5. Qe2 {[%clk 0:03:02]}  b5 {[%clk 0:02:54]} 6. Bb3 {[%clk 0:03:02]}  Bb7 {[%clk 0:02:48]} 7. c3 {[%clk 0:02:59]}  Bc5 {[%clk 0:02:43]} 8. O-O {[%clk 0:02:53]}  d6 {[%clk 0:02:38]} 9. Rd1 {[%clk 0:02:52]}  Qe7 {[%clk 0:02:31]} 10. d3 {[%clk 0:02:50]}  h6 {[%clk 0:02:28]} 11. a4 {[%clk 0:02:48]}  O-O {[%clk 0:02:21]} 12. Nbd2 {[%clk 0:02:48]}  b4 {[%clk 0:02:10]} 13. a5 {[%clk 0:02:46]}  bxc3 {[%clk 0:02:06]} 14. bxc3 {[%clk 0:02:46]}  Bc8 {[%clk 0:02:00]} 15. Nf1 {[%clk 0:02:43]}  Bd7 {[%clk 0:01:48]} 16. Ng3 {[%clk 0:02:39]}  Rab8 {[%clk 0:01:47]} 17. Bc4 {[%clk 0:02:37]}  Ra8 {[%clk 0:01:38]} 18. Nh4 {[%clk 0:02:35]}  Bg4 {[%clk 0:01:17]} 19. Nf3 {[%clk 0:02:30]}  Nh5 {[%clk 0:01:13]} 20. Nf5 {[%clk 0:01:44]}  Qf6 {[%clk 0:01:03]} 21. Bd5 {[%clk 0:01:41]}  Ne7 {[%clk 0:00:44]} 22. Nxe7+ {[%clk 0:01:27]}  Qxe7 {[%clk 0:00:43]} 23. Bxa8 {[%clk 0:01:27]}  Rxa8 {[%clk 0:00:42]} 24. d4 {[%clk 0:01:18]}  Ba7 {[%clk 0:00:40]} 25. h3 {[%clk 0:01:17]}  Bc8 {[%clk 0:00:36]} 26. Be3 {[%clk 0:01:15]}  exd4 {[%clk 0:00:27]} 27. Bxd4 {[%clk 0:01:14]}  Nf4 {[%clk 0:00:23]} 28. Qe3 {[%clk 0:01:10]}  Bxd4 {[%clk 0:00:12]} 29. cxd4 {[%clk 0:01:09]}  Qf6 {[%clk 0:00:11]} 30. e5 {[%clk 0:01:08]}  dxe5 {[%clk 0:00:08]} 31. dxe5 {[%clk 0:01:08]}  Qf5 {[%clk 0:00:07]} 32. Rd8+ {[%clk 0:01:07]}  Kh7 {[%clk 0:00:07]} 33. Rc1 {[%clk 0:00:49]}  Bb7 {[%clk 0:00:06]} 34. Rxa8 {[%clk 0:00:47]}  Bxa8 {[%clk 0:00:06]} 35. Rxc7 {[%clk 0:00:46]}  Nxh3+ {[%clk 0:00:02]} 36. Kh2 {[%clk 0:00:29]}  Nf4 {[%clk 0:00:03]} 37. Rc4 {[%clk 0:00:17]}  Qh5+ {[%clk 0:00:02]} 38. Kg1 {[%clk 0:00:15]}  Nh3+ {[%clk 0:00:02]} 39. gxh3 {[%clk 0:00:10]} 1-0


[Site "https://www.chess.com"]

[Event "Titled Tuesday Blitz March 21 Late 2023"]
[White "Harish, Neeraj"]
[Black "Forgacs, Attila Jr."]
[WhiteFideId "30958130"]
[BlackFideId "773654"]
[WhiteElo "1963"]
[BlackElo "2168"]
[Result "0-1"]
[Round "07"]
[TimeControl "180+2"]
[Date "2023.03.21"]
[WhiteClock "0:00:09"]
[BlackClock "0:00:06"]

1. e4 {[%clk 0:03:00]}  a6 {[%clk 0:03:00]} 2. d4 {[%clk 0:02:59]}  b5 {[%clk 0:03:00]} 3. Bd3 {[%clk 0:02:59]}  Bb7 {[%clk 0:03:00]} 4. Nf3 {[%clk 0:02:59]}  Nf6 {[%clk 0:02:58]} 5. Qe2 {[%clk 0:02:58]}  e6 {[%clk 0:02:58]} 6. O-O {[%clk 0:02:57]}  c5 {[%clk 0:02:58]} 7. c3 {[%clk 0:02:56]}  Be7 {[%clk 0:02:57]} 8. Re1 {[%clk 0:02:46]}  d6 {[%clk 0:02:55]} 9. Nbd2 {[%clk 0:02:45]}  O-O {[%clk 0:02:46]} 10. Nf1 {[%clk 0:02:45]}  Re8 {[%clk 0:02:43]} 11. Ng3 {[%clk 0:02:44]}  Nc6 {[%clk 0:02:36]} 12. a3 {[%clk 0:02:21]}  Rc8 {[%clk 0:02:18]} 13. Be3 {[%clk 0:02:18]}  Bf8 {[%clk 0:02:12]} 14. b4 {[%clk 0:02:06]}  cxd4 {[%clk 0:02:07]} 15. cxd4 {[%clk 0:02:04]}  e5 {[%clk 0:02:03]} 16. d5 {[%clk 0:02:04]}  Ne7 {[%clk 0:02:03]} 17. Rec1 {[%clk 0:01:54]}  Qd7 {[%clk 0:02:01]} 18. Bg5 {[%clk 0:01:44]}  Ng6 {[%clk 0:01:20]} 19. Nf5 {[%clk 0:01:37]}  Nf4 {[%clk 0:01:16]} 20. Qd2 {[%clk 0:01:31]}  Nxd3 {[%clk 0:01:13]} 21. Qxd3 {[%clk 0:01:30]}  Nxd5 {[%clk 0:01:09]} 22. Rxc8 {[%clk 0:01:14]}  Qxc8 {[%clk 0:00:49]} 23. Rc1 {[%clk 0:00:56]}  Qd7 {[%clk 0:00:49]} 24. Qc2 {[%clk 0:00:26]}  Nf4 {[%clk 0:00:40]} 25. Bxf4 {[%clk 0:00:21]}  exf4 {[%clk 0:00:39]} 26. Re1 {[%clk 0:00:20]}  Bxe4 {[%clk 0:00:29]} 27. Rxe4 {[%clk 0:00:15]}  Qxf5 {[%clk 0:00:29]} 28. Re2 {[%clk 0:00:14]}  Qxc2 {[%clk 0:00:21]} 29. Rxc2 {[%clk 0:00:15]}  g5 {[%clk 0:00:18]} 30. Kf1 {[%clk 0:00:14]}  g4 {[%clk 0:00:16]} 31. Nd4 {[%clk 0:00:14]}  Bg7 {[%clk 0:00:16]} 32. Nf5 {[%clk 0:00:14]}  Be5 {[%clk 0:00:13]} 33. Rc6 {[%clk 0:00:13]}  Bb2 {[%clk 0:00:10]} 34. Rxa6 {[%clk 0:00:12]}  Bc3 {[%clk 0:00:08]} 35. f3 {[%clk 0:00:11]}  g3 {[%clk 0:00:08]} 36. hxg3 {[%clk 0:00:11]}  fxg3 {[%clk 0:00:08]} 37. Nxg3 {[%clk 0:00:12]}  Re1+ {[%clk 0:00:09]} 38. Kf2 {[%clk 0:00:12]}  Ra1 {[%clk 0:00:10]} 39. Rxd6 {[%clk 0:00:11]}  Be1+ {[%clk 0:00:09]} 40. Ke2 {[%clk 0:00:11]}  Bxg3 {[%clk 0:00:10]} 41. Rd5 {[%clk 0:00:09]}  Ra2+ {[%clk 0:00:09]} 42. Kd3 {[%clk 0:00:08]}  Rxa3+ {[%clk 0:00:09]} 43. Kc2 {[%clk 0:00:07]}  Ra2+ {[%clk 0:00:09]} 44. Kb3 {[%clk 0:00:07]}  Rxg2 {[%clk 0:00:10]} 45. Rxb5 {[%clk 0:00:07]}  Be1 {[%clk 0:00:08]} 46. Rb8+ {[%clk 0:00:07]}  Kg7 {[%clk 0:00:08]} 47. b5 {[%clk 0:00:07]}  Rf2 {[%clk 0:00:07]} 48. b6 {[%clk 0:00:07]}  Rxf3+ {[%clk 0:00:07]} 49. Ka2 {[%clk 0:00:07]}  Bf2 {[%clk 0:00:06]} 50. b7 {[%clk 0:00:07]}  Bg3 {[%clk 0:00:07]} 51. Rc8 {[%clk 0:00:05]}  Rf2+ {[%clk 0:00:06]} 52. Kb1 {[%clk 0:00:05]}  h5 {[%clk 0:00:04]} 53. b8=Q {[%clk 0:00:03]}  Bxb8 {[%clk 0:00:04]} 54. Rxb8 {[%clk 0:00:04]}  h4 {[%clk 0:00:04]} 55. Rb4 {[%clk 0:00:03]}  Rh2 {[%clk 0:00:03]} 56. Kc1 {[%clk 0:00:03]}  f5 {[%clk 0:00:03]} 57. Kd1 {[%clk 0:00:04]}  Kg6 {[%clk 0:00:04]} 58. Ke1 {[%clk 0:00:04]}  Kg5 {[%clk 0:00:04]} 59. Kf1 {[%clk 0:00:04]}  f4 {[%clk 0:00:05]} 60. Kg1 {[%clk 0:00:04]}  Ra2 {[%clk 0:00:05]} 61. Rb5+ {[%clk 0:00:04]}  Kg4 {[%clk 0:00:06]} 62. Rb8 {[%clk 0:00:05]}  Kf3 {[%clk 0:00:05]} 63. Rb3+ {[%clk 0:00:05]}  Kg4 {[%clk 0:00:05]} 64. Rb8 {[%clk 0:00:05]}  Kg3 {[%clk 0:00:05]} 65. Rg8+ {[%clk 0:00:03]}  Kf3 {[%clk 0:00:05]} 66. Rb8 {[%clk 0:00:02]}  Ra1+ {[%clk 0:00:05]} 67. Kh2 {[%clk 0:00:02]}  Kf2 {[%clk 0:00:05]} 68. Rb2+ {[%clk 0:00:01]}  Ke3 {[%clk 0:00:05]} 69. Rb3+ {[%clk 0:00:01]}  Ke2 {[%clk 0:00:05]} 70. Rb2+ {[%clk 0:00:01]}  Kf3 {[%clk 0:00:05]} 71. Rb3+ {[%clk 0:00:01]}  Kg4 {[%clk 0:00:06]} 72. Rb2 {[%clk 0:00:02]}  Ra3 {[%clk 0:00:06]} 73. Rg2+ {[%clk 0:00:02]}  Kf3 {[%clk 0:00:06]} 74. Rb2 {[%clk 0:00:03]}  Re3 {[%clk 0:00:05]} 75. Kh3 {[%clk 0:00:03]}  Ke4+ {[%clk 0:00:03]} 76. Kxh4 {[%clk 0:00:03]}  Rg3 {[%clk 0:00:03]} 77. Rb4+ {[%clk 0:00:02]}  Ke3 {[%clk 0:00:03]} 78. Rb3+ {[%clk 0:00:02]}  Kf2 {[%clk 0:00:02]} 79. Rb4 {[%clk 0:00:03]}  Kf3 {[%clk 0:00:02]} 80. Rb3+ {[%clk 0:00:03]}  Kg2 {[%clk 0:00:02]} 81. Rb4 {[%clk 0:00:04]}  f3 {[%clk 0:00:02]} 82. Rb2+ {[%clk 0:00:04]}  f2 {[%clk 0:00:02]} 83. Rb1 {[%clk 0:00:05]}  Rg8 {[%clk 0:00:02]} 84. Rb2 {[%clk 0:00:05]}  Kg1 {[%clk 0:00:02]} 85. Rb1+ {[%clk 0:00:05]}  f1=Q {[%clk 0:00:02]} 86. Rxf1+ {[%clk 0:00:06]}  Kxf1 {[%clk 0:00:03]} 87. Kh5 {[%clk 0:00:06]}  Kf2 {[%clk 0:00:03]} 88. Kh6 {[%clk 0:00:07]}  Kf3 {[%clk 0:00:04]} 89. Kh7 {[%clk 0:00:08]}  Rg1 {[%clk 0:00:04]} 90. Kh6 {[%clk 0:00:08]}  Kf4 {[%clk 0:00:05]} 91. Kh5 {[%clk 0:00:09]}  Rg2 {[%clk 0:00:05]} 92. Kh4 {[%clk 0:00:09]}  Rh2# {[%clk 0:00:06]} 0-1


[Site "https://www.chess.com"]

[Event "Titled Tuesday Blitz March 21 Late 2023"]
[White "Battlecruiser_Operational"]
[Black "Meunier-Pion, Jean"]
[BlackFideId "20685327"]
[WhiteElo "2249"]
[BlackElo "2124"]
[Result "1-0"]
[Round "07"]
[TimeControl "180+2"]
[Date "2023.03.21"]
[WhiteClock "0:00:08"]
[BlackClock "0:00:06"]

1. d4 {[%clk 0:03:00]}  Nf6 {[%clk 0:02:59]} 2. c4 {[%clk 0:02:59]}  e6 {[%clk 0:02:59]} 3. Nf3 {[%clk 0:02:56]}  b6 {[%clk 0:02:59]} 4. g3 {[%clk 0:02:55]}  Bb7 {[%clk 0:02:57]} 5. Bg2 {[%clk 0:02:55]}  d5 {[%clk 0:02:51]} 6. Nbd2 {[%clk 0:02:52]}  Be7 {[%clk 0:02:47]} 7. O-O {[%clk 0:02:51]}  O-O {[%clk 0:02:47]} 8. b3 {[%clk 0:02:47]}  Nbd7 {[%clk 0:02:43]} 9. Bb2 {[%clk 0:02:47]}  Ne4 {[%clk 0:02:34]} 10. Nxe4 {[%clk 0:02:46]}  dxe4 {[%clk 0:02:34]} 11. Nd2 {[%clk 0:02:37]}  f5 {[%clk 0:02:34]} 12. e3 {[%clk 0:02:36]}  Nf6 {[%clk 0:02:23]} 13. f3 {[%clk 0:02:21]}  exf3 {[%clk 0:02:22]} 14. Bxf3 {[%clk 0:02:22]}  Bxf3 {[%clk 0:02:21]} 15. Qxf3 {[%clk 0:02:21]}  Qe8 {[%clk 0:02:17]} 16. e4 {[%clk 0:02:09]}  Bb4 {[%clk 0:02:09]} 17. Bc3 {[%clk 0:01:53]}  Bxc3 {[%clk 0:02:04]} 18. Qxc3 {[%clk 0:01:52]}  fxe4 {[%clk 0:02:05]} 19. Rae1 {[%clk 0:01:51]}  Qc6 {[%clk 0:01:37]} 20. Qe3 {[%clk 0:01:46]}  Rad8 {[%clk 0:01:24]} 21. Nxe4 {[%clk 0:01:37]}  Nxe4 {[%clk 0:01:06]} 22. Qxe4 {[%clk 0:01:37]}  Rxf1+ {[%clk 0:00:42]} 23. Kxf1 {[%clk 0:01:38]}  Rf8+ {[%clk 0:00:42]} 24. Kg2 {[%clk 0:01:36]}  Qxe4+ {[%clk 0:00:42]} 25. Rxe4 {[%clk 0:01:37]}  Rf6 {[%clk 0:00:42]} 26. b4 {[%clk 0:01:17]}  Kf7 {[%clk 0:00:40]} 27. a4 {[%clk 0:01:17]}  a6 {[%clk 0:00:31]} 28. a5 {[%clk 0:01:11]}  bxa5 {[%clk 0:00:29]} 29. bxa5 {[%clk 0:01:11]}  Ke7 {[%clk 0:00:29]} 30. g4 {[%clk 0:01:06]}  Kd6 {[%clk 0:00:27]} 31. h4 {[%clk 0:00:36]}  h5 {[%clk 0:00:21]} 32. c5+ {[%clk 0:00:17]}  Kd5 {[%clk 0:00:21]} 33. Re5+ {[%clk 0:00:18]}  Kxd4 {[%clk 0:00:21]} 34. Rxh5 {[%clk 0:00:18]}  e5 {[%clk 0:00:20]} 35. Rg5 {[%clk 0:00:18]}  Rf7 {[%clk 0:00:18]} 36. Rg6 {[%clk 0:00:18]}  e4 {[%clk 0:00:18]} 37. Rxa6 {[%clk 0:00:17]}  Kd5 {[%clk 0:00:15]} 38. Ra8 {[%clk 0:00:15]}  Kxc5 {[%clk 0:00:12]} 39. Re8 {[%clk 0:00:15]}  Kd4 {[%clk 0:00:13]} 40. a6 {[%clk 0:00:15]}  c5 {[%clk 0:00:13]} 41. g5 {[%clk 0:00:15]}  c4 {[%clk 0:00:13]} 42. g6 {[%clk 0:00:15]}  Ra7 {[%clk 0:00:12]} 43. h5 {[%clk 0:00:14]}  Rxa6 {[%clk 0:00:12]} 44. Re7 {[%clk 0:00:12]}  c3 {[%clk 0:00:13]} 45. Rxg7 {[%clk 0:00:12]}  Rc6 {[%clk 0:00:08]} 46. Rd7+ {[%clk 0:00:10]}  Ke3 {[%clk 0:00:08]} 47. g7 {[%clk 0:00:10]}  c2 {[%clk 0:00:07]} 48. g8=Q {[%clk 0:00:10]}  c1=Q {[%clk 0:00:07]} 49. Qg5+ {[%clk 0:00:09]}  Ke2 {[%clk 0:00:07]} 50. Qg4+ {[%clk 0:00:08]}  Ke1 {[%clk 0:00:07]} 51. Qg3+ {[%clk 0:00:08]}  Ke2 {[%clk 0:00:06]} 52. Qf2# {[%clk 0:00:08]} 1-0


[Site "https://www.chess.com"]

[Event "Titled Tuesday Blitz March 21 Late 2023"]
[White "Beulen, Marcel"]
[Black "Bongo Akanga Ndjila, Barthelemy"]
[WhiteFideId "1001450"]
[BlackFideId "10609431"]
[WhiteElo "2383"]
[BlackElo "1768"]
[Result "1-0"]
[Round "07"]
[TimeControl "180+2"]
[Date "2023.03.21"]
[WhiteClock "0:00:44"]
[BlackClock "0:00:02"]

1. e4 {[%clk 0:03:00]}  e6 {[%clk 0:02:57]} 2. d4 {[%clk 0:03:00]}  d5 {[%clk 0:02:58]} 3. exd5 {[%clk 0:03:00]}  exd5 {[%clk 0:02:57]} 4. Nf3 {[%clk 0:03:00]}  Nf6 {[%clk 0:02:57]} 5. Bd3 {[%clk 0:02:58]}  Bd6 {[%clk 0:02:57]} 6. Qe2+ {[%clk 0:02:59]}  Qe7 {[%clk 0:02:51]} 7. Qxe7+ {[%clk 0:02:58]}  Kxe7 {[%clk 0:02:51]} 8. O-O {[%clk 0:02:57]}  Re8 {[%clk 0:02:51]} 9. Bg5 {[%clk 0:02:35]}  h6 {[%clk 0:02:41]} 10. Bh4 {[%clk 0:02:27]}  g5 {[%clk 0:02:32]} 11. Bg3 {[%clk 0:02:27]}  Bxg3 {[%clk 0:02:23]} 12. hxg3 {[%clk 0:02:25]}  Bg4 {[%clk 0:02:21]} 13. Ne5 {[%clk 0:02:23]}  Be6 {[%clk 0:02:19]} 14. Nd2 {[%clk 0:02:16]}  Nbd7 {[%clk 0:02:18]} 15. f4 {[%clk 0:02:16]}  Nf8 {[%clk 0:02:10]} 16. Rae1 {[%clk 0:02:12]}  gxf4 {[%clk 0:02:04]} 17. gxf4 {[%clk 0:02:11]}  Kd8 {[%clk 0:01:56]} 18. f5 {[%clk 0:02:07]}  Bd7 {[%clk 0:01:53]} 19. Nxf7+ {[%clk 0:02:07]}  Kc8 {[%clk 0:01:52]} 20. Nxh6 {[%clk 0:02:00]}  N8h7 {[%clk 0:01:46]} 21. Nf7 {[%clk 0:01:53]}  Rg8 {[%clk 0:01:45]} 22. Nf3 {[%clk 0:01:41]}  c6 {[%clk 0:01:39]} 23. N3e5 {[%clk 0:01:39]}  Kc7 {[%clk 0:01:36]} 24. Re3 {[%clk 0:01:30]}  Rg7 {[%clk 0:01:35]} 25. Nxd7 {[%clk 0:01:16]}  Kxd7 {[%clk 0:01:32]} 26. Ne5+ {[%clk 0:01:16]}  Kd6 {[%clk 0:01:30]} 27. c3 {[%clk 0:01:04]}  Rag8 {[%clk 0:01:29]} 28. Rf2 {[%clk 0:01:04]}  Ng5 {[%clk 0:01:26]} 29. Kf1 {[%clk 0:01:04]}  Nge4 {[%clk 0:01:24]} 30. Bxe4 {[%clk 0:01:04]}  Nxe4 {[%clk 0:01:24]} 31. Rc2 {[%clk 0:01:02]}  Ng3+ {[%clk 0:01:21]} 32. Kg1 {[%clk 0:00:59]}  Nxf5 {[%clk 0:01:21]} 33. Rf3 {[%clk 0:00:48]}  Nh4 {[%clk 0:01:15]} 34. Rff2 {[%clk 0:00:48]}  c5 {[%clk 0:01:11]} 35. Nf3 {[%clk 0:00:47]}  cxd4 {[%clk 0:00:02]} 36. Nxh4 {[%clk 0:00:44]} 1-0


[Site "https://www.chess.com"]

[Event "Titled Tuesday Blitz March 21 Late 2023"]
[White "Krzywda, Andrzej"]
[Black "Oliveira, Tiago Batista"]
[WhiteFideId "1114565"]
[BlackFideId "2108291"]
[WhiteElo "2155"]
[BlackElo "1962"]
[Result "1-0"]
[Round "07"]
[TimeControl "180+2"]
[Date "2023.03.21"]
[WhiteClock "0:00:38"]
[BlackClock "0:00:08"]

1. c4 {[%clk 0:03:00]}  Nf6 {[%clk 0:02:58]} 2. g3 {[%clk 0:03:00]}  g6 {[%clk 0:02:57]} 3. Bg2 {[%clk 0:03:00]}  Bg7 {[%clk 0:02:57]} 4. Nf3 {[%clk 0:02:59]}  O-O {[%clk 0:02:57]} 5. O-O {[%clk 0:02:59]}  c5 {[%clk 0:02:57]} 6. Nc3 {[%clk 0:02:58]}  Nc6 {[%clk 0:02:57]} 7. a3 {[%clk 0:02:57]}  d6 {[%clk 0:02:50]} 8. b4 {[%clk 0:02:49]}  cxb4 {[%clk 0:02:49]} 9. axb4 {[%clk 0:02:50]}  Nxb4 {[%clk 0:02:47]} 10. Ba3 {[%clk 0:02:50]}  Nc6 {[%clk 0:02:47]} 11. Qc2 {[%clk 0:02:47]}  Bd7 {[%clk 0:02:38]} 12. Rfb1 {[%clk 0:02:47]}  b6 {[%clk 0:02:35]} 13. d3 {[%clk 0:02:43]}  Rc8 {[%clk 0:02:34]} 14. Bc1 {[%clk 0:02:38]}  Ne8 {[%clk 0:02:30]} 15. Bb2 {[%clk 0:02:35]}  Nb4 {[%clk 0:02:17]} 16. Qd2 {[%clk 0:02:33]}  a5 {[%clk 0:02:15]} 17. Ne1 {[%clk 0:02:23]}  Nc7 {[%clk 0:02:14]} 18. Nc2 {[%clk 0:02:22]}  Nca6 {[%clk 0:02:09]} 19. Ne3 {[%clk 0:02:20]}  e6 {[%clk 0:01:48]} 20. h4 {[%clk 0:02:18]}  h5 {[%clk 0:01:37]} 21. Ne4 {[%clk 0:02:16]}  d5 {[%clk 0:01:29]} 22. Bxg7 {[%clk 0:02:14]}  Kxg7 {[%clk 0:01:28]} 23. Qb2+ {[%clk 0:02:14]}  f6 {[%clk 0:01:22]} 24. cxd5 {[%clk 0:02:09]}  exd5 {[%clk 0:01:22]} 25. Nd6 {[%clk 0:01:51]}  Rc6 {[%clk 0:01:20]} 26. Nb5 {[%clk 0:01:51]}  Be6 {[%clk 0:01:11]} 27. Nd4 {[%clk 0:01:50]}  Rd6 {[%clk 0:01:07]} 28. Rc1 {[%clk 0:01:45]}  Bf7 {[%clk 0:01:03]} 29. Qd2 {[%clk 0:01:28]}  Nc5 {[%clk 0:00:56]} 30. Nef5+ {[%clk 0:01:23]}  gxf5 {[%clk 0:00:49]} 31. Nxf5+ {[%clk 0:01:24]}  Kg6 {[%clk 0:00:35]} 32. Bh3 {[%clk 0:01:20]}  Rh8 {[%clk 0:00:32]} 33. Qf4 {[%clk 0:01:07]}  Rc6 {[%clk 0:00:17]} 34. g4 {[%clk 0:00:53]}  Qc7 {[%clk 0:00:16]} 35. gxh5+ {[%clk 0:00:50]}  Rxh5 {[%clk 0:00:16]} 36. Qg4+ {[%clk 0:00:49]}  Rg5 {[%clk 0:00:14]} 37. hxg5 {[%clk 0:00:48]}  fxg5 {[%clk 0:00:13]} 38. d4 {[%clk 0:00:41]}  Ne4 {[%clk 0:00:12]} 39. Rxc6+ {[%clk 0:00:40]}  Nxc6 {[%clk 0:00:11]} 40. Rc1 {[%clk 0:00:39]}  Qd7 {[%clk 0:00:08]} 41. Nh4+ {[%clk 0:00:38]} 1-0


[Site "https://www.chess.com"]

[Event "Titled Tuesday Blitz March 21 Late 2023"]
[White "dorpato"]
[Black "Senft, Sean"]
[BlackFideId "2044960"]
[WhiteElo "2011"]
[BlackElo "1989"]
[Result "1-0"]
[Round "07"]
[TimeControl "180+2"]
[Date "2023.03.21"]
[WhiteClock "0:01:44"]
[BlackClock "0:01:38"]

1. d4 {[%clk 0:02:59]}  d5 {[%clk 0:02:59]} 2. c4 {[%clk 0:02:58]}  c6 {[%clk 0:02:59]} 3. Nc3 {[%clk 0:02:56]}  Nf6 {[%clk 0:03:00]} 4. cxd5 {[%clk 0:02:54]}  cxd5 {[%clk 0:03:00]} 5. Bf4 {[%clk 0:02:54]}  Nc6 {[%clk 0:03:00]} 6. e3 {[%clk 0:02:54]}  a6 {[%clk 0:03:00]} 7. Bd3 {[%clk 0:02:53]}  Bg4 {[%clk 0:03:00]} 8. f3 {[%clk 0:02:30]}  Bh5 {[%clk 0:03:00]} 9. Qb3 {[%clk 0:02:29]}  b5 {[%clk 0:02:53]} 10. Rc1 {[%clk 0:02:22]}  Rc8 {[%clk 0:02:50]} 11. Nxb5 {[%clk 0:02:13]}  axb5 {[%clk 0:02:49]} 12. Bxb5 {[%clk 0:02:08]}  Qa5+ {[%clk 0:02:44]} 13. Kf2 {[%clk 0:02:07]}  Kd7 {[%clk 0:02:32]} 14. Ne2 {[%clk 0:02:03]}  e6 {[%clk 0:02:30]} 15. Rxc6 {[%clk 0:01:59]}  Rxc6 {[%clk 0:02:25]} 16. Rc1 {[%clk 0:01:59]}  Qb6 {[%clk 0:02:07]} 17. Bxc6+ {[%clk 0:01:57]}  Qxc6 {[%clk 0:02:07]} 18. Rxc6 {[%clk 0:01:56]}  Kxc6 {[%clk 0:02:08]} 19. Qa4+ {[%clk 0:01:54]}  Kb6 {[%clk 0:01:54]} 20. Nc3 {[%clk 0:01:53]}  Be7 {[%clk 0:01:49]} 21. Qb5+ {[%clk 0:01:52]}  Ka7 {[%clk 0:01:49]} 22. Bc7 {[%clk 0:01:45]}  Rc8 {[%clk 0:01:37]} 23. Qb6+ {[%clk 0:01:44]}  Ka8 {[%clk 0:01:38]} 24. Qa6# {[%clk 0:01:44]} 1-0


[Site "https://www.chess.com"]